[Event "Caplin Hastings Masters 2023-24"]
[Site "Hastings"]
[Date "2023.12.31"]
[Round "4.41"]
[White "Honey, Luke Anthony"]
[Black "Park, Inchan"]
[Result "1/2-1/2"]
[ECO "B03"]
[WhiteElo "1907"]
[BlackElo "1768"]
[Annotator "RC"]
[PlyCount "121"]
[EventDate "2023.12.18"]
[EventType "swiss"]
[EventCountry "ENG"]
[SourceTitle "playchess.com"]
[Source "ChessBase"]
[SourceQuality "1"]
[TimeControl "40/6000+30:3000+30"]

1. e4 {[%emt 0:00:03]} Nf6 {[%emt 0:00:10]} 2. e5 {[%emt 0:00:05]} Nd5 {[%emt 0:00:03]} 3. d4 {[%emt 0:00:04]} d6 {[%emt 0:00:03]} 4. c4 {[%emt 0:00:12]} Nb6 {[%emt 0:00:04]} 5. f4 {[%emt 0:00:04]} dxe5 {[%emt 0:00:03]} 6. fxe5 {[%emt 0:00:06]} Nc6 {[%emt 0:00:04]} 7. Be3 {[%emt 0:00:09]} Bf5 {[%emt 0:00:05]} 8. Nc3 {[%emt 0:00:16]} e6 {[%emt 0:00:01]} 9. Nf3 {[%emt 0:00:11]} Be7 {[%emt 0:00:04]} 10. Be2 {[%emt 0:00:07]} O-O {[%emt 0:00:05]} 11. O-O {[%emt 0:00:06]} f6 {[%emt 0:00:01]} 12. exf6 {[%emt 0:00:07]} Bxf6 {[%emt 0:00:04]} 13. Qd2 {[%emt 0:00:15]} Qe7 {[%emt 0:00:07]} 14. Rad1 {[%emt 0:01:04]} Rad8 {[%emt 0:00:07]} 15. Qc1 {[%emt 0:01:33]} e5 {[%emt 0:00:09]} 16. dxe5 {[%emt 0:12:41]} Nxe5 {[%emt 0:20:31]} 17. c5 {[%emt 0:19:43]} Ng4 {[%emt 0:50:05]} 18. Rxd8 {[%emt 0:33:06]} Rxd8 {[%emt 0:00:07]} 19. cxb6 {[%emt 0:00:05]} Qxe3+ {[%emt 0:00:35]} 20. Qxe3 {[%emt 0:00:17]} Nxe3 {[%emt 0:00:03]} 21. bxc7 {[%emt 0:00:55]} Rc8 {[%emt 0:00:04]} 22. Re1 {[%emt 0:14:05]} Rxc7 {[%emt 0:02:08]} 23. Nb5 {[%emt 0:08:49]} Re7 {[%emt 0:07:01]} 24. Nxa7 {[%emt 0:04:06]} Kf8 {[%emt 0:01:17]} 25. Kf2 {[%emt 0:03:14]} Bxb2 {[%emt 0:12:02]} 26. Nb5 {[%emt 0:01:16]} Ng4+ {[%emt 0:07:33]} 27. Kg3 {[%emt 0:00:11]} h5 {[%emt 0:03:40]} 28. Nbd4 {[%emt 0:04:49]} Bd7 {[%emt 0:00:27]} 29. Rb1 {[%emt 0:01:27]} Ba3 {[%emt 0:00:44]} 30. h3 {[%emt 0:01:16]} Bd6+ {[%emt 0:01:11]} 31. Kh4 {[%emt 0:00:02]} Nf6 {[%emt 0:01:12]} 32. Bd3 {[%emt 0:01:01]} Re3 {[%emt 0:03:36]} 33. Bg6 {[%emt 0:01:34]} Bf4 {[%emt 0:00:19]} 34. Rxb7 {[%emt 0:01:10]} Ra3 {[%emt 0:01:28]} 35. Rb2 {[%emt 0:00:45]} Ke7 {[%emt 0:01:47]} 36. Re2+ {[%emt 0:01:49]} Kd8 {[%emt 0:00:05]} 37. Rc2 {[%emt 0:01:14]} Ke7 {[%emt 0:00:27]} 38. Ne2 {[%emt 0:00:29]} Bd6 {[%emt 0:01:05]} 39. Nc3 {[%emt 0:00:47]} Bf4 {[%emt 0:00:36]} 40. Re2+ {[%emt 0:00:34]} Kd8 {[%emt 0:00:10]} 41. Ne4 {[%emt 0:50:38]} Bb5 {[%emt 0:11:43]} 42. Rb2 {[%emt 0:00:00]} Nxe4 {[%emt 0:04:41]} 43. Rxb5 {[%emt 0:00:00]} Bg3+ {[%emt 0:03:25]} 44. Kxh5 {[%emt 0:00:00]} Nf6+ {[%emt 0:00:07]} 45. Kg5 {[%emt 0:00:00]} Rxa2 {[%emt 0:00:04]} 46. Rb7 {[%emt 0:00:00]} Rxg2 {[%emt 0:00:40]} 47. Rxg7 {[%emt 0:00:00]} Be5+ {[%emt 0:01:06]} 48. Kf5 {[%emt 0:00:00]} Bc3 {[%emt 0:00:24]} 49. Rf7 {[%emt 0:00:00]} Rf2 {[%emt 0:00:42]} 50. Kf4 {[%emt 0:00:00]} Nd7 {[%emt 0:01:21]} 51. Bh5 {[%emt 0:00:00]} Ne5 {[%emt 0:08:24]} 52. Rf8+ {[%emt 0:00:00]} Ke7 {[%emt 0:00:05]} 53. Rc8 {[%emt 0:00:00]} Bd4 {[%emt 0:06:45]} 54. Re8+ {[%emt 0:00:00]} Kf6 {[%emt 0:00:21]} 55. Rf8+ {[%emt 0:00:00]} Kg7 {[%emt 0:00:19]} 56. Rf5 {[%emt 0:00:00]} Nxf3 {[%emt 0:00:55]} 57. Bxf3 {[%emt 0:00:00]} Ra2 {[%emt 0:00:50]} 58. Kg4 {[%emt 0:00:00]} Bf6 {[%emt 0:00:19]} 59. Rf4 {[%emt 0:00:00]} Rd2 {[%emt 0:00:55]} 60. h4 {[%emt 0:00:00]} Rd4 {[%emt 0:00:14]} 61. Rxd4 {[%emt 0:00:00]} 1/2-1/2

[Event "Caplin Hastings Masters 2023-24"]
[Site "Hastings"]
[Date "2023.12.31"]
[Round "4.42"]
[White "Han, Qixuan"]
[Black "Steiners, Emils"]
[Result "0-1"]
[ECO "A06"]
[WhiteElo "1603"]
[BlackElo "1993"]
[Annotator "RC"]
[PlyCount "126"]
[EventDate "2023.12.18"]
[EventType "swiss"]
[EventCountry "ENG"]
[SourceTitle "playchess.com"]
[Source "ChessBase"]
[SourceQuality "1"]
[TimeControl "40/6000+30:3000+30"]

1. b3 {[%emt 0:00:02]} d5 {[%emt 0:00:57]} 2. Bb2 {[%emt 0:00:11]} e6 {[%emt 0:01:38]} 3. Nf3 {[%emt 0:00:16]} Nf6 {[%emt 0:01:13]} 4. c4 {[%emt 0:00:18]} c6 {[%emt 0:01:18]} 5. e3 {[%emt 0:00:26]} Nbd7 {[%emt 0:01:15]} 6. d4 {[%emt 0:00:47]} b6 {[%emt 0:03:58]} 7. cxd5 {[%emt 0:01:08]} exd5 {[%emt 0:05:17]} 8. Nc3 {[%emt 0:01:38]} Be7 {[%emt 0:01:44]} 9. Be2 {[%emt 0:02:05]} O-O {[%emt 0:00:33]} 10. O-O {[%emt 0:00:11]} Bb7 {[%emt 0:01:34]} 11. Rc1 {[%emt 0:01:20]} Rc8 {[%emt 0:01:24]} 12. Qd2 {[%emt 0:01:48]} Bd6 {[%emt 0:10:43]} 13. Bd3 {[%emt 0:03:07]} Re8 {[%emt 0:07:03]} 14. Qc2 {[%emt 0:08:13]} Qe7 {[%emt 0:03:44]} 15. Nd2 {[%emt 0:02:16]} Bb8 {[%emt 0:13:19]} 16. e4 {[%emt 0:04:23]} c5 {[%emt 0:12:49]} 17. e5 {[%emt 0:10:49]} cxd4 {[%emt 0:06:29]} 18. exf6 {[%emt 0:00:21]} Qd6 {[%emt 0:01:35]} 19. Bxh7+ {[%emt 0:01:27]} Kh8 {[%emt 0:02:24]} 20. fxg7+ {[%emt 0:01:07]} Kxg7 {[%emt 0:00:02]} 21. Nf3 {[%emt 0:01:02]} dxc3 {[%emt 0:02:02]} 22. Bxc3+ {[%emt 0:06:32]} d4 {[%emt 0:02:30]} 23. Bxd4+ {[%emt 0:01:21]} Kf8 {[%emt 0:02:05]} 24. Qb2 {[%emt 0:02:09]} Rxc1 {[%emt 0:02:18]} 25. Bg7+ {[%emt 0:04:16]} Ke7 {[%emt 0:00:02]} 26. Qxc1 {[%emt 0:00:16]} Bxf3 {[%emt 0:02:40]} 27. Qg5+ {[%emt 0:10:06]} f6 {[%emt 0:00:36]} 28. Qh6 {[%emt 0:01:57]} Bc6 {[%emt 0:05:04]} 29. Qh5 {[%emt 0:01:36]} Kd8 {[%emt 0:01:10]} 30. Bh6 {[%emt 0:03:19]} Qxh2+ {[%emt 0:01:49]} 31. Qxh2 {[%emt 0:00:04]} Bxh2+ {[%emt 0:00:06]} 32. Kxh2 {[%emt 0:00:23]} Rh8 {[%emt 0:00:04]} 33. Rc1 {[%emt 0:03:35]} Rxh7 {[%emt 0:02:39]} 34. Rxc6 {[%emt 0:00:06]} Rxh6+ {[%emt 0:00:03]} 35. Kg1 {[%emt 0:00:31]} Rh5 {[%emt 0:00:09]} 36. b4 {[%emt 0:01:15]} Rd5 {[%emt 0:01:18]} 37. Rc3 {[%emt 0:01:21]} Rd1+ {[%emt 0:01:58]} 38. Kh2 {[%emt 0:00:01]} Ne5 {[%emt 0:01:09]} 39. Ra3 {[%emt 0:00:48]} Rd3 {[%emt 0:00:02]} 40. Rxd3+ {[%emt 0:00:34]} Nxd3 {[%emt 0:00:01]} 41. Kg3 {[%emt 0:50:20]} Nxb4 {[%emt 0:00:04]} 42. a3 {[%emt 0:00:04]} Nc2 {[%emt 0:50:23]} 43. a4 {[%emt 0:00:03]} a5 {[%emt 0:00:03]} 44. Kf4 {[%emt 0:00:06]} Ne1 {[%emt 0:00:47]} 45. g4 {[%emt 0:00:34]} Nd3+ {[%emt 0:00:15]} 46. Ke3 {[%emt 0:00:25]} Nc5 {[%emt 0:00:14]} 47. f4 {[%emt 0:00:08]} Nxa4 {[%emt 0:00:10]} 48. g5 {[%emt 0:00:14]} fxg5 {[%emt 0:00:04]} 49. fxg5 {[%emt 0:00:05]} Ke7 {[%emt 0:00:10]} 50. Kd3 {[%emt 0:00:13]} Nc5+ {[%emt 0:00:10]} 51. Kc4 {[%emt 0:00:04]} Kf7 {[%emt 0:00:14]} 52. Kb5 {[%emt 0:00:17]} Kg6 {[%emt 0:00:13]} 53. Kxb6 {[%emt 0:00:07]} a4 {[%emt 0:00:03]} 54. Kxc5 {[%emt 0:00:15]} a3 {[%emt 0:00:05]} 55. Kd4 {[%emt 0:00:11]} a2 {[%emt 0:00:01]} 56. Ke4 {[%emt 0:00:08]} a1=Q {[%emt 0:00:05]} 57. Kf4 {[%emt 0:00:03]} Qe1 {[%emt 0:00:21]} 58. Kg4 {[%emt 0:00:06]} Qf1 {[%emt 0:00:09]} 59. Kh4 {[%emt 0:00:08]} Qf4+ {[%emt 0:00:25]} 60. Kh3 {[%emt 0:00:06]} Kxg5 {[%emt 0:00:11]} 61. Kg2 {[%emt 0:00:04]} Kg4 {[%emt 0:00:12]} 62. Kg1 {[%emt 0:00:09]} Kg3 {[%emt 0:00:05]} 63. Kh1 {[%emt 0:00:06]} Qc1# {[%emt 0:00:07]} 0-1

[Event "Caplin Hastings Masters 2023-24"]
[Site "Hastings"]
[Date "2023.12.31"]
[Round "4.43"]
[White "Binks, Michael"]
[Black "Damodaran, Patrick"]
[Result "0-1"]
[ECO "E60"]
[WhiteElo "2035"]
[BlackElo "1798"]
[Annotator "RC"]
[PlyCount "40"]
[EventDate "2023.12.18"]
[EventType "swiss"]
[EventCountry "ENG"]
[SourceTitle "playchess.com"]
[Source "ChessBase"]
[SourceQuality "1"]
[TimeControl "40/6000+30:3000+30"]

1. d4 {[%emt 0:00:29]} Nf6 {[%emt 0:03:08]} 2. Nf3 {[%emt 0:00:30]} g6 {[%emt 0:01:52]} 3. e3 {[%emt 0:02:25]} Bg7 {[%emt 0:01:29]} 4. Bd3 {[%emt 0:00:30]} O-O {[%emt 0:03:09]} 5. O-O {[%emt 0:01:35]} d6 {[%emt 0:02:52]} 6. c4 {[%emt 0:03:53]} Re8 {[%emt 0:03:44]} 7. e4 {[%emt 0:03:27]} e5 {[%emt 0:01:42]} 8. d5 {[%emt 0:00:16]} a5 {[%emt 0:02:13]} 9. h3 {[%emt 0:01:37]} Nbd7 {[%emt 0:02:21]} 10. Be3 {[%emt 0:00:46]} Nh5 {[%emt 0:03:50]} 11. Nc3 {[%emt 0:05:29]} Nc5 {[%emt 0:02:57]} 12. Bc2 {[%emt 0:07:20]} Nf4 {[%emt 0:03:25]} 13. Ne2 {[%emt 0:04:09]} g5 {[%emt 0:06:09]} 14. Nxf4 {[%emt 0:11:23]} exf4 {[%emt 0:01:55]} 15. Bxc5 {[%emt 0:01:47]} dxc5 {[%emt 0:00:21]} 16. Qd3 {[%emt 0:00:46]} Ra6 {[%emt 0:08:31]} 17. e5 {[%emt 0:07:15]} Rh6 {[%emt 0:01:21]} 18. Rfe1 {[%emt 0:00:29]} g4 {[%emt 0:05:25]} 19. hxg4 {[%emt 0:02:02]} Bxg4 {[%emt 0:02:30]} 20. Nh2 {[%emt 0:04:32]} Qh4 {[%emt 0:01:14]} 0-1

[Event "Caplin Hastings Masters 2023-24"]
[Site "Hastings"]
[Date "2023.12.31"]
[Round "4.44"]
[White "Flynn, David"]
[Black "Gordon, Sean"]
[Result "1-0"]
[ECO "B21"]
[WhiteElo "1791"]
[BlackElo "1968"]
[Annotator "RC"]
[PlyCount "69"]
[EventDate "2023.12.18"]
[EventType "swiss"]
[EventCountry "ENG"]
[SourceTitle "playchess.com"]
[Source "ChessBase"]
[SourceQuality "1"]
[TimeControl "40/6000+30:3000+30"]

1. e4 {[%emt 0:00:03]} c5 {[%emt 0:00:11]} 2. Nc3 {[%emt 0:00:03]} e6 {[%emt 0:00:09]} 3. f4 {[%emt 0:00:06]} d5 {[%emt 0:00:28]} 4. Nf3 {[%emt 0:00:04]} dxe4 {[%emt 0:00:43]} 5. Nxe4 {[%emt 0:00:06]} Nf6 {[%emt 0:00:36]} 6. Nxf6+ {[%emt 0:00:45]} Qxf6 {[%emt 0:01:23]} 7. g3 {[%emt 0:00:30]} Nc6 {[%emt 0:03:22]} 8. Bg2 {[%emt 0:00:48]} Bd6 {[%emt 0:03:20]} 9. O-O {[%emt 0:02:48]} O-O {[%emt 0:04:11]} 10. Qe2 {[%emt 0:04:01]} e5 {[%emt 0:06:39]} 11. fxe5 {[%emt 0:00:31]} Nxe5 {[%emt 0:02:14]} 12. Nxe5 {[%emt 0:03:50]} Qxe5 {[%emt 0:00:06]} 13. Qxe5 {[%emt 0:01:20]} Bxe5 {[%emt 0:00:04]} 14. d3 {[%emt 0:02:17]} Rb8 {[%emt 0:11:57]} 15. Bf4 {[%emt 0:06:25]} Bxf4 {[%emt 0:00:28]} 16. Rxf4 {[%emt 0:00:04]} Be6 {[%emt 0:01:06]} 17. a3 {[%emt 0:10:51]} g5 {[%emt 0:04:13]} 18. Re4 {[%emt 0:05:32]} b6 {[%emt 0:04:37]} 19. Rae1 {[%emt 0:05:56]} Kg7 {[%emt 0:03:47]} 20. h4 {[%emt 0:03:33]} h6 {[%emt 0:02:23]} 21. hxg5 {[%emt 0:04:17]} hxg5 {[%emt 0:00:07]} 22. Re5 {[%emt 0:00:40]} Kf6 {[%emt 0:07:45]} 23. Bd5 {[%emt 0:04:21]} Bxd5 {[%emt 0:05:31]} 24. Rxd5 {[%emt 0:00:04]} Rb7 {[%emt 0:03:10]} 25. Ree5 {[%emt 0:03:13]} Rg8 {[%emt 0:04:21]} 26. Rf5+ {[%emt 0:01:00]} Ke6 {[%emt 0:00:33]} 27. Rxg5 {[%emt 0:01:46]} Rxg5 {[%emt 0:01:46]} 28. Rxg5 {[%emt 0:00:05]} f6 {[%emt 0:01:30]} 29. Rg8 {[%emt 0:02:03]} Kf5 {[%emt 0:04:37]} 30. Kg2 {[%emt 0:01:25]} Rh7 {[%emt 0:03:07]} 31. Re8 {[%emt 0:10:29]} Kg5 {[%emt 0:07:25]} 32. b3 {[%emt 0:03:15]} Kf5 {[%emt 0:02:16]} 33. a4 {[%emt 0:00:55]} Kg5 {[%emt 0:04:36]} 34. a5 {[%emt 0:01:50]} Rd7 {[%emt 0:02:59]} 35. a6 {[%emt 0:10:50]} 1-0

[Event "Caplin Hastings Masters 2023-24"]
[Site "Hastings"]
[Date "2023.12.31"]
[Round "4.45"]
[White "Butt, Laurence"]
[Black "Moracchini, Margaux"]
[Result "0-1"]
[ECO "D01"]
[WhiteElo "1688"]
[BlackElo "1922"]
[Annotator "NA RC"]
[PlyCount "84"]
[EventDate "2023.12.18"]
[EventType "swiss"]
[EventCountry "ENG"]
[SourceTitle "playchess.com"]
[Source "ChessBase"]
[SourceQuality "1"]
[TimeControl "40/6000+30:3000+30"]

1. d4 {[%emt 0:01:40]} Nf6 {[%emt 0:01:06]} 2. Bg5 {[%emt 0:01:22]} d5 {[%emt 0:00:15]} 3. Nc3 {[%emt 0:00:15]} h6 {[%emt 0:00:57]} 4. Bf4 {[%emt 0:01:22]} c5 {[%emt 0:07:15]} 5. e3 {[%emt 0:00:31]} Qa5 {[%emt 0:04:44]} 6. Bxb8 {[%emt 0:02:28]} Rxb8 {[%emt 0:00:05]} 7. Bb5+ {[%emt 0:00:08]} Bd7 {[%emt 0:00:35]} 8. Bxd7+ {[%emt 0:00:09]} Nxd7 {[%emt 0:00:22]} 9. dxc5 {[%emt 0:06:22]} e6 {[%emt 0:00:16]} 10. a3 {[%emt 0:02:41]} Qxc5 {[%emt 0:00:45]} 11. Nge2 {[%emt 0:00:16]} Nf6 {[%emt 0:06:26]} 12. O-O {[%emt 0:00:44]} Bd6 {[%emt 0:02:04]} 13. b4 {[%emt 0:00:37]} Qc6 {[%emt 0:00:44]} 14. Qd3 {[%emt 0:02:26]} Rc8 {[%emt 0:02:22]} 15. Rac1 {[%emt 0:06:07]} O-O {[%emt 0:01:19]} 16. Rfd1 {[%emt 0:01:20]} Rfd8 {[%emt 0:05:55]} 17. Nb5 {[%emt 0:06:23]} Bb8 {[%emt 0:08:19]} 18. c4 {[%emt 0:03:47]} a6 {[%emt 0:01:13]} 19. Nbd4 {[%emt 0:03:20]} Qc7 {[%emt 0:04:18]} 20. c5 {[%emt 0:10:48]} Qxh2+ {[%emt 0:00:19]} 21. Kf1 {[%emt 0:00:16]} Qh1+ {[%emt 0:09:45]} 22. Ng1 {[%emt 0:02:07]} Ng4 {[%emt 0:01:02]} 23. Nde2 {[%emt 0:14:28]} Nh2+ {[%emt 0:01:30]} 24. Ke1 {[%emt 0:00:16]} Qxg2 {[%emt 0:00:17]} 25. Kd2 {[%emt 0:07:31]} Qxf2 {[%emt 0:01:47]} 26. Kc3 {[%emt 0:00:20]} Ng4 {[%emt 0:01:56]} 27. Kb3 {[%emt 0:06:25]} Qxe3 {[%emt 0:01:27]} 28. a4 {[%emt 0:00:38]} Qxd3+ {[%emt 0:01:20]} 29. Rxd3 {[%emt 0:00:08]} Ne5 {[%emt 0:01:12]} 30. Rdd1 {[%emt 0:03:11]} g5 {[%emt 0:02:18]} 31. Nd4 {[%emt 0:00:43]} Nc4 {[%emt 0:00:34]} 32. Ngf3 {[%emt 0:01:32]} Bf4 {[%emt 0:00:47]} 33. Rxc4 {[%emt 0:01:04]} dxc4+ {[%emt 0:00:08]} 34. Kc2 {[%emt 0:01:17]} e5 {[%emt 0:00:51]} 35. Nf5 {[%emt 0:00:15]} Rxd1 {[%emt 0:00:16]} 36. Kxd1 {[%emt 0:00:01]} Rd8+ {[%emt 0:00:16]} 37. Kc2 {[%emt 0:00:22]} e4 {[%emt 0:00:09]} 38. N3d4 {[%emt 0:00:41]} e3 {[%emt 0:01:07]} 39. Nxh6+ {[%emt 0:01:47]} Kg7 {[%emt 0:01:00]} 40. Nhf5+ {[%emt 0:00:25]} Kf6 {[%emt 0:00:17]} 41. b5 {[%emt 0:50:39]} axb5 {[%emt 0:50:16]} 42. axb5 {[%emt 0:00:08]} e2 {[%emt 0:00:14]} 0-1

[Event "Caplin Hastings Masters 2023-24"]
[Site "Hastings"]
[Date "2023.12.31"]
[Round "4.47"]
[White "Dewangan, Aayush"]
[Black "Prudent, Sylvio"]
[Result "1-0"]
[ECO "B08"]
[WhiteElo "1655"]
[BlackElo "1639"]
[Annotator "NA RC"]
[PlyCount "57"]
[EventDate "2023.12.18"]
[EventType "swiss"]
[EventCountry "ENG"]
[SourceTitle "playchess.com"]
[Source "ChessBase"]
[SourceQuality "1"]
[TimeControl "40/6000+30:3000+30"]

1. e4 {[%emt 0:00:06]} d6 {[%emt 0:00:05]} 2. d4 {[%emt 0:00:08]} Nf6 {[%emt 0:00:07]} 3. Nc3 {[%emt 0:00:08]} g6 {[%emt 0:00:07]} 4. Nf3 {[%emt 0:00:32]} Bg7 {[%emt 0:00:29]} 5. Be2 {[%emt 0:00:15]} O-O {[%emt 0:00:42]} 6. O-O {[%emt 0:00:10]} Bg4 {[%emt 0:02:30]} 7. h3 {[%emt 0:01:40]} Bxf3 {[%emt 0:00:16]} 8. Bxf3 {[%emt 0:00:03]} c6 {[%emt 0:00:20]} 9. Bf4 {[%emt 0:02:49]} Nbd7 {[%emt 0:02:30]} 10. e5 {[%emt 0:05:28]} Ne8 {[%emt 0:13:38]} 11. Qe2 {[%emt 0:05:02]} d5 {[%emt 0:04:14]} 12. Qd2 {[%emt 0:03:57]} Nc7 {[%emt 0:01:40]} 13. a4 {[%emt 0:02:07]} Ne6 {[%emt 0:03:44]} 14. Bh2 {[%emt 0:00:47]} Re8 {[%emt 0:26:52]} 15. Be2 {[%emt 0:07:15]} f6 {[%emt 0:04:08]} 16. f4 {[%emt 0:04:18]} Qb6 {[%emt 0:04:59]} 17. Rfd1 {[%emt 0:06:36]} fxe5 {[%emt 0:07:38]} 18. fxe5 {[%emt 0:01:40]} Nxe5 {[%emt 0:09:33]} 19. Kh1 {[%emt 0:10:52]} Nf7 {[%emt 0:02:22]} 20. Bg4 {[%emt 0:02:39]} Bh6 {[%emt 0:17:36]} 21. Qd3 {[%emt 0:07:25]} Nf4 {[%emt 0:06:22]} 22. Qf3 {[%emt 0:05:50]} e5 {[%emt 0:00:20]} 23. a5 {[%emt 0:02:10]} Qd8 {[%emt 0:00:50]} 24. Rf1 {[%emt 0:02:31]} e4 {[%emt 0:00:54]} 25. Qf2 {[%emt 0:00:19]} e3 {[%emt 0:00:21]} 26. Qf3 {[%emt 0:00:14]} e2 {[%emt 0:00:39]} 27. Nxe2 {[%emt 0:00:26]} Nxe2 {[%emt 0:00:29]} 28. Qxf7+ {[%emt 0:00:08]} Kh8 {[%emt 0:00:05]} 29. Bxe2 {[%emt 0:00:46]} 1-0

[Event "Caplin Hastings Masters 2023-24"]
[Site "Hastings"]
[Date "2023.12.31"]
[Round "4.48"]
[White "Metcalfe, Charlie P"]
[Black "Kim, Sumin"]
[Result "1-0"]
[ECO "D45"]
[WhiteElo "1760"]
[BlackElo "1358"]
[Annotator "NA RC"]
[PlyCount "57"]
[EventDate "2023.12.18"]
[EventType "swiss"]
[EventCountry "ENG"]
[SourceTitle "playchess.com"]
[Source "ChessBase"]
[SourceQuality "1"]
[TimeControl "40/6000+30:3000+30"]

1. d4 {[%emt 0:00:01]} d5 {[%emt 0:00:07]} 2. c4 {[%emt 0:00:01]} e6 {[%emt 0:00:21]} 3. Nc3 {[%emt 0:00:01]} c6 {[%emt 0:00:38]} 4. Nf3 {[%emt 0:00:02]} Nf6 {[%emt 0:00:08]} 5. e3 {[%emt 0:00:05]} a6 {[%emt 0:00:22]} 6. Qc2 {[%emt 0:00:13]} Bd6 {[%emt 0:01:05]} 7. c5 {[%emt 0:00:44]} Bc7 {[%emt 0:04:37]} 8. e4 {[%emt 0:00:37]} dxe4 {[%emt 0:01:12]} 9. Nxe4 {[%emt 0:00:03]} Nd5 {[%emt 0:07:53]} 10. Bd2 {[%emt 0:08:01]} Nd7 {[%emt 0:07:31]} 11. Bd3 {[%emt 0:09:44]} N7f6 {[%emt 0:01:47]} 12. O-O {[%emt 0:02:14]} O-O {[%emt 0:04:06]} 13. Nxf6+ {[%emt 0:08:07]} Nxf6 {[%emt 0:00:45]} 14. Bg5 {[%emt 0:00:12]} h6 {[%emt 0:00:18]} 15. Bh4 {[%emt 0:00:12]} Bd7 {[%emt 0:06:08]} 16. Rad1 {[%emt 0:07:45]} Bf4 {[%emt 0:17:39]} 17. Ne5 {[%emt 0:10:46]} Qc7 {[%emt 0:07:56]} 18. Qe2 {[%emt 0:06:40]} Bxe5 {[%emt 0:05:01]} 19. dxe5 {[%emt 0:00:14]} Nd5 {[%emt 0:00:19]} 20. Qe4 {[%emt 0:00:50]} g6 {[%emt 0:00:54]} 21. Bb1 {[%emt 0:16:51]} b6 {[%emt 0:13:48]} 22. Rd3 {[%emt 0:04:12]} f5 {[%emt 0:03:53]} 23. exf6 {[%emt 0:00:38]} Kh7 {[%emt 0:00:48]} 24. Rxd5 {[%emt 0:03:37]} Be8 {[%emt 0:01:26]} 25. Rd6 {[%emt 0:01:14]} bxc5 {[%emt 0:00:29]} 26. Rfd1 {[%emt 0:00:38]} Rc8 {[%emt 0:01:27]} 27. Rd7+ {[%emt 0:00:33]} Bxd7 {[%emt 0:00:36]} 28. Qxg6+ {[%emt 0:00:02]} Kh8 {[%emt 0:00:12]} 29. Qg7# {[%emt 0:00:07]} 1-0

[Event "Caplin Hastings Masters 2023-24"]
[Site "Hastings"]
[Date "2024.01.01"]
[Round "5.1"]
[White "Zhang, Pengxiang"]
[Black "Laurent-Paoli, Pierre"]
[Result "1-0"]
[ECO "B33"]
[WhiteElo "2558"]
[BlackElo "2524"]
[Annotator "TA"]
[PlyCount "77"]
[EventDate "2023.12.18"]
[EventType "swiss"]
[EventCountry "ENG"]
[SourceTitle "playchess.com"]
[Source "ChessBase"]
[SourceQuality "1"]
[TimeControl "40/6000+30:3000+30"]

{[%evp 26,77,25,37,27,11,12,19,22,27,10,15,26,15,20,11,24,0,14,0,0,-64,-10,-85,-25,-28,7,4,12,3,7,6,38,38,38,38,48,0,0,0,0,0,8,0,195,194,358,230,336,316,1280,550,29990,29991]} 1. e4 {[%emt 0:00:04]} c5 {[%emt 0:06:19]} 2. Nf3 {[%emt 0:00:16]} e6 {[%emt 0:00:28]} 3. d4 {[%emt 0:00:55]} cxd4 {[%emt 0:00:07]} 4. Nxd4 {[%emt 0:00:02]} Nc6 {[%emt 0:01:07]} 5. Nc3 {[%emt 0:01:41]} Nf6 {[%emt 0:00:29]} 6. Ndb5 {[%emt 0:07:56]} d6 {[%emt 0:00:28]} 7. Bf4 {[%emt 0:00:06]} e5 {[%emt 0:00:03]} 8. Bg5 {[%emt 0:00:03]} a6 {[%emt 0:00:07]} 9. Na3 {[%emt 0:00:05]} b5 {[%emt 0:00:08]} 10. Nd5 {[%emt 0:00:11]} Be7 {[%emt 0:00:11]} 11. Bxf6 {[%emt 0:00:05]} Bxf6 {[%emt 0:00:06]} 12. c3 {[%emt 0:00:02]} Rb8 {[%emt 0:01:09]} 13. Nc2 {[%emt 0:00:20]} Bg5 {[%emt 0:00:11]} 14. a4 {[%emt 0:08:25] 14.Ncb4 injects fresh life into this line.} bxa4 {[%emt 0:00:35] B33: Sicilian: Pelikan and Sveshnikov Variations.} 15. Ncb4 {[%emt 0:00:02]} (15. Nce3 $5 {[%cal Rd1a4]}) 15... Nxb4 {[%emt 0:00:16]} 16. cxb4 {[%emt 0:00:04]} O-O {[%emt 0:00:52] The position is equal.} 17. Rxa4 {[%emt 0:00:06]} a5 {[%emt 0:00:24]} 18. h4 {[%emt 0:00:06]} (18. Rxa5 $2 Rxb4 19. Ra4 Rxb2 $19) (18. bxa5 Rxb2 19. Qa1 Rc2 $17) 18... Bh6 {[%emt 0:00:10]} 19. b5 {[%emt 0:00:03]} ({Weaker is} 19. Rxa5 Rxb4 20. Ra8 Rxe4+ 21. Be2 Rd4 $17) ({Much weaker is} 19. bxa5 Rxb2 20. Qa1 Rc2 $17) 19... Kh8 {[%emt 0:00:31]} 20. Be2 {[%emt 0:02:18]} Bd7 {[%emt 0:00:33]} 21. Qb3 $5 {[%emt 0:09:50][%mdl 4] Leaves trodden paths.} Be6 {[%emt 0:09:28]} 22. g3 {[%emt 0:02:47]} f5 {[%emt 0:03:16] [#]} 23. O-O $146 {[%emt 0:22:13]} (23. exf5 $11 Rxf5 24. O-O) ({Predecessor (2):} 23. exf5 Rxf5 24. O-O e4 25. Rd4 g5 26. h5 Bg7 27. Qd1 Bxd4 28. Qxd4+ Re5 29. Ne3 Qb6 30. Qd2 {0-1 Arizmendi Martinez,J (2488)-Kuzubov,Y (2627) ESP-chT CECLUB Honor 2022 (7.2)}) 23... f4 {[%emt 0:09:59]} (23... fxe4 $15 24. Rxe4 Qd7) 24. Qd1 {[%emt 0:12:39]} (24. Qc3 $1 $11) 24... Qd7 {[%emt 0:10:58]} ({Better is} 24... Bd7 $17) 25. Rxa5 $11 {[%emt 0:25:32]} Qf7 {[%emt 0:22:32]} 26. Ra3 {[%emt 0:05:43]} g5 {[%emt 0:05:22]} 27. h5 {[%emt 0:01:09]} g4 $1 {[%emt 0:04:29]} 28. Bxg4 {[%emt 0:00:13]} Bxd5 {[%emt 0:00:11]} (28... fxg3 {feels hotter.} 29. Bxe6 gxf2+ 30. Kg2 Qxe6 31. Rxf2 Rg8+) 29. exd5 {[%emt 0:01:04]} Rxb5 {[%emt 0:00:29]} 30. Be6 $36 {[%emt 0:00:05][%mdl 2048] White has the initiative.} Qg7 {[%emt 0:00:57][%cal Oe5e4]} 31. Qe2 {[%emt 0:00:20]} (31. g4 $14) 31... Rb4 {[%emt 0:01:09]} 32. Rfa1 {[%emt 0:03:41]} e4 {[%emt 0:05:59]} 33. Ra7 {[%emt 0:01:39]} Qg5 {[%emt 0:08:41] Black is weak on the light squares} 34. g4 {[%emt 0:01:29]} Bg7 $2 {[%emt 0:05:29] [#]} (34... e3 $1 $11 {and Black has nothing to worry.} 35. Ra8 Rbb8 36. Rxb8 Rxb8) 35. Ra8 $1 $18 {[%emt 0:00:08] Strongly threatening Rxf8+.} f3 $2 {[%emt 0:04:01]} (35... e3) 36. Rxf8+ {[%emt 0:03:25]} Bxf8 {[%emt 0:00:01]} 37. Qc2 {[%emt 0:00:04] White threatens Ra8 and mate.} Qf6 $2 {[%emt 0:06:14]} (37... Rb8 38. Qxe4 Bh6 39. Qxf3 (39. Ra7 Qc1+ 40. Kh2 Bf4+) 39... Qf4) 38. Ra7 {[%emt 0:00:22]} (38. Ra8 $142 {[%cal Oh5h6] White wants to mate with h6!} Kg7 39. Ra7+ Kh6 40. Qd2+ e3 41. Qxb4) 38... Rb8 {[%emt 0:04:27]} 39. Qc7 {[%emt 0:01:19] Repels Bg7.   Weighted Error Value: White=0.29 (precise) /Black=0.42} 1-0